[Event "Titled Tuesday Blitz July 6 2021"]
[White "Araujo Sanchez, Josue"]
[Black "Zong, Davis"]
[WhiteFideId "6416896"]
[BlackFideId "30903955"]
[WhiteElo "2181"]
[BlackElo "2413"]
[Result "0-1"]
[Round "03"]
[TimeControl "180+1"]
[Date "2021.07.06"]
[WhiteClock "0:00:30"]
[BlackClock "0:00:14"]

1. Nf3 {[%clk 0:03:00]}  Nf6 {[%clk 0:02:58]} 2. g3 {[%clk 0:03:01]}  d5 {[%clk 0:02:58]} 3. Bg2 {[%clk 0:03:02]}  Bg4 {[%clk 0:02:58]} 4. O-O {[%clk 0:03:03]}  c6 {[%clk 0:02:57]} 5. c4 {[%clk 0:03:01]}  Nbd7 {[%clk 0:02:55]} 6. d3 {[%clk 0:02:57]}  e5 {[%clk 0:02:51]} 7. cxd5 {[%clk 0:02:51]}  cxd5 {[%clk 0:02:52]} 8. Nc3 {[%clk 0:02:51]}  Bd6 {[%clk 0:02:33]} 9. h3 {[%clk 0:02:47]}  Bh5 {[%clk 0:02:29]} 10. Bg5 {[%clk 0:02:23]}  Qb6 {[%clk 0:02:16]} 11. Bxf6 {[%clk 0:02:19]}  Nxf6 {[%clk 0:02:15]} 12. Qa4+ {[%clk 0:02:18]}  Qc6 {[%clk 0:02:15]} 13. Qb3 {[%clk 0:02:18]}  O-O {[%clk 0:02:09]} 14. Nd2 {[%clk 0:02:11]}  Rac8 {[%clk 0:01:47]} 15. g4 {[%clk 0:02:04]}  Bg6 {[%clk 0:01:47]} 16. Rac1 {[%clk 0:01:57]}  e4 {[%clk 0:01:39]} 17. g5 {[%clk 0:01:56]}  Nh5 {[%clk 0:01:37]} 18. Qxd5 {[%clk 0:01:11]}  Qxd5 {[%clk 0:01:27]} 19. Nxd5 {[%clk 0:01:12]}  exd3 {[%clk 0:01:26]} 20. e3 {[%clk 0:01:10]}  f6 {[%clk 0:01:10]} 21. h4 {[%clk 0:01:07]}  fxg5 {[%clk 0:01:03]} 22. hxg5 {[%clk 0:01:08]}  h6 {[%clk 0:01:03]} 23. gxh6 {[%clk 0:01:07]}  gxh6 {[%clk 0:01:04]} 24. Ne4 {[%clk 0:01:00]}  Rxc1 {[%clk 0:00:31]} 25. Rxc1 {[%clk 0:00:58]}  Be5 {[%clk 0:00:29]} 26. Ne7+ {[%clk 0:00:57]}  Kf7 {[%clk 0:00:25]} 27. Nxg6 {[%clk 0:00:57]}  Kxg6 {[%clk 0:00:26]} 28. b3 {[%clk 0:00:55]}  Nf6 {[%clk 0:00:22]} 29. Nxf6 {[%clk 0:00:54]}  Kxf6 {[%clk 0:00:22]} 30. Bxb7 {[%clk 0:00:53]}  d2 {[%clk 0:00:20]} 31. Rd1 {[%clk 0:00:53]}  Rd8 {[%clk 0:00:20]} 32. f4 {[%clk 0:00:51]}  Bb2 {[%clk 0:00:20]} 33. Kf2 {[%clk 0:00:52]}  Bc1 {[%clk 0:00:19]} 34. Be4 {[%clk 0:00:49]}  h5 {[%clk 0:00:18]} 35. Kf3 {[%clk 0:00:50]}  h4 {[%clk 0:00:18]} 36. Rh1 {[%clk 0:00:49]}  Rh8 {[%clk 0:00:18]} 37. Bc2 {[%clk 0:00:46]}  h3 {[%clk 0:00:15]} 38. Bd1 {[%clk 0:00:42]}  a5 {[%clk 0:00:14]} 39. Kg3 {[%clk 0:00:42]}  Kf5 {[%clk 0:00:14]} 40. Bc2+ {[%clk 0:00:41]}  Kf6 {[%clk 0:00:14]} 41. e4 {[%clk 0:00:37]}  Rc8 {[%clk 0:00:13]} 42. Bd1 {[%clk 0:00:35]}  Rc3+ {[%clk 0:00:10]} 43. Kg4 {[%clk 0:00:35]}  Re3 {[%clk 0:00:09]} 44. e5+ {[%clk 0:00:25]}  Ke6 {[%clk 0:00:09]} 45. Rxh3 {[%clk 0:00:23]}  Re1 {[%clk 0:00:09]} 46. Rh6+ {[%clk 0:00:23]}  Ke7 {[%clk 0:00:09]} 47. Bf3 {[%clk 0:00:21]}  d1=Q {[%clk 0:00:09]} 48. Bxd1 {[%clk 0:00:22]}  Rxd1 {[%clk 0:00:10]} 49. f5 {[%clk 0:00:22]}  Bxh6 {[%clk 0:00:09]} 50. Kh5 {[%clk 0:00:20]}  Rh1+ {[%clk 0:00:09]} 51. Kg6 {[%clk 0:00:21]}  Bf4 {[%clk 0:00:08]} 52. f6+ {[%clk 0:00:18]}  Kf8 {[%clk 0:00:09]} 53. e6 {[%clk 0:00:17]}  Bd6 {[%clk 0:00:09]} 54. Kf5 {[%clk 0:00:16]}  Rf1+ {[%clk 0:00:09]} 55. Kg6 {[%clk 0:00:16]}  Re1 {[%clk 0:00:08]} 56. Kf5 {[%clk 0:00:16]}  Re5+ {[%clk 0:00:07]} 57. Kg6 {[%clk 0:00:17]}  Rxe6 {[%clk 0:00:08]} 58. Kg5 {[%clk 0:00:18]}  Kf7 {[%clk 0:00:08]} 59. Kf5 {[%clk 0:00:19]}  Rxf6+ {[%clk 0:00:09]} 60. Kg5 {[%clk 0:00:20]}  Ke6 {[%clk 0:00:09]} 61. Kh4 {[%clk 0:00:19]}  Ba3 {[%clk 0:00:09]} 62. Kg4 {[%clk 0:00:20]}  Rf2 {[%clk 0:00:09]} 63. Kh3 {[%clk 0:00:21]}  Rxa2 {[%clk 0:00:10]} 64. Kg3 {[%clk 0:00:22]}  Rb2 {[%clk 0:00:10]} 65. Kg4 {[%clk 0:00:22]}  Rxb3 {[%clk 0:00:11]} 66. Kh4 {[%clk 0:00:23]}  a4 {[%clk 0:00:11]} 67. Kh5 {[%clk 0:00:24]}  Bb2 {[%clk 0:00:12]} 68. Kg6 {[%clk 0:00:25]}  a3 {[%clk 0:00:13]} 69. Kg5 {[%clk 0:00:26]}  a2 {[%clk 0:00:14]} 70. Kh5 {[%clk 0:00:27]}  a1=Q {[%clk 0:00:15]} 71. Kg4 {[%clk 0:00:28]}  Qg1+ {[%clk 0:00:14]} 72. Kh4 {[%clk 0:00:29]}  Rb8 {[%clk 0:00:14]} 73. Kh5 {[%clk 0:00:30]}  Rh8# {[%clk 0:00:14]} 0-1


[Site "https://www.chess.com"]

[Event "Titled Tuesday Blitz July 6 2021"]
[White "Arutinian, David"]
[Black "Leenhouts, Koen"]
[WhiteFideId "13601741"]
[BlackFideId "1008439"]
[WhiteElo "2525"]
[BlackElo "2409"]
[Result "1-0"]
[Round "03"]
[TimeControl "180+1"]
[Date "2021.07.06"]
[WhiteClock "0:01:35"]
[BlackClock "0:01:00"]

1. Nf3 {[%clk 0:03:00]}  Nf6 {[%clk 0:02:56]} 2. c4 {[%clk 0:03:00]}  c5 {[%clk 0:02:52]} 3. Nc3 {[%clk 0:02:58]}  d5 {[%clk 0:02:52]} 4. cxd5 {[%clk 0:02:58]}  Nxd5 {[%clk 0:02:53]} 5. e3 {[%clk 0:02:59]}  e6 {[%clk 0:02:51]} 6. d4 {[%clk 0:02:59]}  cxd4 {[%clk 0:02:50]} 7. exd4 {[%clk 0:02:58]}  Nc6 {[%clk 0:02:48]} 8. Bd3 {[%clk 0:02:56]}  Be7 {[%clk 0:02:45]} 9. O-O {[%clk 0:02:56]}  O-O {[%clk 0:02:45]} 10. Re1 {[%clk 0:02:56]}  Bf6 {[%clk 0:02:38]} 11. Be4 {[%clk 0:02:55]}  Nxc3 {[%clk 0:02:35]} 12. bxc3 {[%clk 0:02:55]}  Ne7 {[%clk 0:02:36]} 13. h4 {[%clk 0:02:49]}  Qc7 {[%clk 0:02:29]} 14. Qd3 {[%clk 0:02:47]}  h6 {[%clk 0:02:26]} 15. Ng5 {[%clk 0:02:20]}  Rd8 {[%clk 0:02:12]} 16. Bxb7 {[%clk 0:02:03]}  Bxb7 {[%clk 0:01:55]} 17. Qh7+ {[%clk 0:02:02]}  Kf8 {[%clk 0:01:55]} 18. Qh8+ {[%clk 0:02:00]}  Ng8 {[%clk 0:01:55]} 19. Ba3+ {[%clk 0:02:01]}  Rd6 {[%clk 0:01:49]} 20. Rxe6 {[%clk 0:01:49]}  fxe6 {[%clk 0:01:28]} 21. Nxe6+ {[%clk 0:01:48]}  Kf7 {[%clk 0:01:24]} 22. Nxc7 {[%clk 0:01:49]}  Rad8 {[%clk 0:01:08]} 23. Bxd6 {[%clk 0:01:47]}  Rxd6 {[%clk 0:01:09]} 24. Qh7 {[%clk 0:01:42]}  Ne7 {[%clk 0:01:00]} 25. Re1 {[%clk 0:01:35]} 1-0


[Site "https://www.chess.com"]

[Event "Titled Tuesday Blitz July 6 2021"]
[White "Balaji, Aaravamudhan"]
[Black "Afanasiev, Nikita"]
[WhiteFideId "436224"]
[BlackFideId "24183555"]
[WhiteElo "2085"]
[BlackElo "2521"]
[Result "0-1"]
[Round "03"]
[TimeControl "180+1"]
[Date "2021.07.06"]
[WhiteClock "0:00:11"]
[BlackClock "0:00:55"]

1. d4 {[%clk 0:03:00]}  Nf6 {[%clk 0:02:58]} 2. c4 {[%clk 0:03:01]}  d6 {[%clk 0:02:58]} 3. Nc3 {[%clk 0:03:01]}  Bf5 {[%clk 0:02:57]} 4. f3 {[%clk 0:03:00]}  e5 {[%clk 0:02:55]} 5. d5 {[%clk 0:02:59]}  e4 {[%clk 0:02:53]} 6. Bg5 {[%clk 0:02:57]}  Be7 {[%clk 0:02:51]} 7. Qb3 {[%clk 0:02:50]}  O-O {[%clk 0:02:51]} 8. g4 {[%clk 0:02:44]}  Bg6 {[%clk 0:02:50]} 9. h4 {[%clk 0:02:44]}  h6 {[%clk 0:02:49]} 10. Bd2 {[%clk 0:02:43]}  Na6 {[%clk 0:02:48]} 11. h5 {[%clk 0:02:31]}  Bh7 {[%clk 0:02:45]} 12. g5 {[%clk 0:02:19]}  hxg5 {[%clk 0:02:44]} 13. Bxg5 {[%clk 0:02:20]}  Nc5 {[%clk 0:02:44]} 14. Qd1 {[%clk 0:02:20]}  Nfd7 {[%clk 0:02:36]} 15. Bxe7 {[%clk 0:02:04]}  Qxe7 {[%clk 0:02:37]} 16. f4 {[%clk 0:02:04]}  e3 {[%clk 0:02:33]} 17. Qd4 {[%clk 0:01:58]}  Qf6 {[%clk 0:02:19]} 18. Qxf6 {[%clk 0:01:48]}  Nxf6 {[%clk 0:02:20]} 19. h6 {[%clk 0:01:49]}  gxh6 {[%clk 0:02:16]} 20. Rxh6 {[%clk 0:01:50]}  Kg7 {[%clk 0:02:16]} 21. Rh3 {[%clk 0:01:50]}  Rae8 {[%clk 0:02:08]} 22. Rg3+ {[%clk 0:01:49]}  Kh8 {[%clk 0:02:08]} 23. Nh3 {[%clk 0:01:49]}  Nh5 {[%clk 0:02:03]} 24. Rg5 {[%clk 0:01:44]}  Ng7 {[%clk 0:02:01]} 25. O-O-O {[%clk 0:01:36]}  f6 {[%clk 0:01:57]} 26. Rg1 {[%clk 0:01:36]}  Nf5 {[%clk 0:01:56]} 27. Bg2 {[%clk 0:01:31]}  a5 {[%clk 0:01:53]} 28. Bf3 {[%clk 0:01:30]}  Rg8 {[%clk 0:01:49]} 29. Rh1 {[%clk 0:01:30]}  Rg3 {[%clk 0:01:46]} 30. Rh2 {[%clk 0:01:29]}  Kg7 {[%clk 0:01:44]} 31. Bh5 {[%clk 0:01:28]}  Rh8 {[%clk 0:01:43]} 32. Rg1 {[%clk 0:01:27]}  Rxg1+ {[%clk 0:01:38]} 33. Nxg1 {[%clk 0:01:28]}  Bg6 {[%clk 0:01:35]} 34. Bxg6 {[%clk 0:01:22]}  Rxh2 {[%clk 0:01:34]} 35. Bxf5 {[%clk 0:01:23]}  Rh1 {[%clk 0:01:35]} 36. Kc2 {[%clk 0:01:21]}  Rxg1 {[%clk 0:01:35]} 37. a3 {[%clk 0:01:20]}  a4 {[%clk 0:01:35]} 38. Nb5 {[%clk 0:01:11]}  c6 {[%clk 0:01:27]} 39. dxc6 {[%clk 0:01:08]}  bxc6 {[%clk 0:01:28]} 40. Nxd6 {[%clk 0:01:08]}  Rf1 {[%clk 0:01:26]} 41. Ne4 {[%clk 0:01:00]}  Rxf4 {[%clk 0:01:09]} 42. Nxc5 {[%clk 0:00:58]}  Rxc4+ {[%clk 0:01:09]} 43. Kd3 {[%clk 0:00:42]}  Rxc5 {[%clk 0:01:10]} 44. Be4 {[%clk 0:00:42]}  Rb5 {[%clk 0:01:01]} 45. Bxc6 {[%clk 0:00:38]}  Rxb2 {[%clk 0:01:01]} 46. Bxa4 {[%clk 0:00:33]}  Ra2 {[%clk 0:01:01]} 47. Bb5 {[%clk 0:00:33]}  Rxa3+ {[%clk 0:01:02]} 48. Ke4 {[%clk 0:00:33]}  Kg6 {[%clk 0:01:01]} 49. Bd3 {[%clk 0:00:33]}  Kg5 {[%clk 0:01:01]} 50. Kxe3 {[%clk 0:00:33]}  Kg4 {[%clk 0:01:01]} 51. Ke4 {[%clk 0:00:32]}  f5+ {[%clk 0:01:00]} 52. Ke5 {[%clk 0:00:32]}  f4 {[%clk 0:01:01]} 53. Ke4 {[%clk 0:00:29]}  Kg3 {[%clk 0:00:59]} 54. Bb5 {[%clk 0:00:25]}  Rb3 {[%clk 0:00:59]} 55. Ba6 {[%clk 0:00:24]}  Rb4+ {[%clk 0:00:58]} 56. Kf5 {[%clk 0:00:23]}  Kf2 {[%clk 0:00:57]} 57. Kg5 {[%clk 0:00:22]}  Ke3 {[%clk 0:00:56]} 58. Kf5 {[%clk 0:00:21]}  Ra4 {[%clk 0:00:56]} 59. Bd3 {[%clk 0:00:11]}  f3 {[%clk 0:00:55]} 0-1


[Site "https://www.chess.com"]

[Event "Titled Tuesday Blitz July 6 2021"]
[White "Colas, Joshua"]
[Black "Navalgund, Niranjan"]
[WhiteFideId "2044447"]
[BlackFideId "5030854"]
[WhiteElo "2347"]
[BlackElo "2290"]
[Result "1-0"]
[Round "03"]
[TimeControl "180+1"]
[Date "2021.07.06"]
[WhiteClock "0:00:14"]
[BlackClock "0:00:04"]

1. Nf3 {[%clk 0:03:00]}  Nf6 {[%clk 0:02:59]} 2. c4 {[%clk 0:02:53]}  e6 {[%clk 0:02:52]} 3. g3 {[%clk 0:02:52]}  a6 {[%clk 0:02:46]} 4. Bg2 {[%clk 0:02:52]}  b5 {[%clk 0:02:46]} 5. b3 {[%clk 0:02:51]}  Bb7 {[%clk 0:02:45]} 6. O-O {[%clk 0:02:50]}  Be7 {[%clk 0:02:42]} 7. d4 {[%clk 0:02:50]}  O-O {[%clk 0:02:42]} 8. Nc3 {[%clk 0:02:50]}  b4 {[%clk 0:02:41]} 9. Na4 {[%clk 0:02:50]}  d6 {[%clk 0:02:41]} 10. a3 {[%clk 0:02:40]}  a5 {[%clk 0:02:22]} 11. axb4 {[%clk 0:02:39]}  axb4 {[%clk 0:02:22]} 12. Bd2 {[%clk 0:02:40]}  c5 {[%clk 0:02:19]} 13. dxc5 {[%clk 0:02:40]}  dxc5 {[%clk 0:02:19]} 14. Be3 {[%clk 0:02:36]}  Ne4 {[%clk 0:02:17]} 15. Nd2 {[%clk 0:02:27]}  Nxd2 {[%clk 0:01:53]} 16. Qxd2 {[%clk 0:02:14]}  Qxd2 {[%clk 0:01:38]} 17. Bxd2 {[%clk 0:02:14]}  Bxg2 {[%clk 0:01:38]} 18. Kxg2 {[%clk 0:02:15]}  Bf6 {[%clk 0:01:29]} 19. Rad1 {[%clk 0:02:06]}  Na6 {[%clk 0:01:26]} 20. Be3 {[%clk 0:02:05]}  Rac8 {[%clk 0:01:17]} 21. Rd6 {[%clk 0:02:04]}  Nb8 {[%clk 0:01:11]} 22. Rb6 {[%clk 0:01:32]}  Bd4 {[%clk 0:00:56]} 23. Bxd4 {[%clk 0:01:26]}  cxd4 {[%clk 0:00:56]} 24. Rxb4 {[%clk 0:01:26]}  Rfd8 {[%clk 0:00:54]} 25. Rd1 {[%clk 0:01:25]}  e5 {[%clk 0:00:52]} 26. c5 {[%clk 0:01:15]}  Na6 {[%clk 0:00:49]} 27. Rc4 {[%clk 0:00:59]}  Rb8 {[%clk 0:00:46]} 28. Rb1 {[%clk 0:00:59]}  e4 {[%clk 0:00:36]} 29. c6 {[%clk 0:00:58]}  Nc7 {[%clk 0:00:34]} 30. Nc5 {[%clk 0:00:55]}  d3 {[%clk 0:00:27]} 31. exd3 {[%clk 0:00:48]}  exd3 {[%clk 0:00:27]} 32. Rd1 {[%clk 0:00:45]}  d2 {[%clk 0:00:25]} 33. Rc2 {[%clk 0:00:44]}  Rb6 {[%clk 0:00:15]} 34. Rcxd2 {[%clk 0:00:44]}  Rxd2 {[%clk 0:00:14]} 35. Rxd2 {[%clk 0:00:45]}  g6 {[%clk 0:00:14]} 36. Rd8+ {[%clk 0:00:42]}  Kg7 {[%clk 0:00:14]} 37. Rd6 {[%clk 0:00:43]}  Nb5 {[%clk 0:00:13]} 38. Rd7 {[%clk 0:00:44]}  Rxc6 {[%clk 0:00:13]} 39. Nd3 {[%clk 0:00:40]}  Rc2 {[%clk 0:00:13]} 40. Ne5 {[%clk 0:00:39]}  Kf6 {[%clk 0:00:13]} 41. Nxf7 {[%clk 0:00:35]}  Rb2 {[%clk 0:00:13]} 42. h4 {[%clk 0:00:27]}  Nc3 {[%clk 0:00:12]} 43. Ng5 {[%clk 0:00:26]}  h6 {[%clk 0:00:12]} 44. Nh7+ {[%clk 0:00:23]}  Ke6 {[%clk 0:00:13]} 45. Nf8+ {[%clk 0:00:24]}  Kf6 {[%clk 0:00:13]} 46. Rb7 {[%clk 0:00:20]}  Ne4 {[%clk 0:00:12]} 47. Rb6+ {[%clk 0:00:20]}  Kf7 {[%clk 0:00:12]} 48. Nxg6 {[%clk 0:00:20]}  Rxf2+ {[%clk 0:00:12]} 49. Kh3 {[%clk 0:00:18]}  Rb2 {[%clk 0:00:13]} 50. Ne5+ {[%clk 0:00:18]}  Kg7 {[%clk 0:00:13]} 51. Rb7+ {[%clk 0:00:16]}  Kf6 {[%clk 0:00:13]} 52. Ng4+ {[%clk 0:00:17]}  Kg6 {[%clk 0:00:13]} 53. Rb6+ {[%clk 0:00:17]}  Kg7 {[%clk 0:00:13]} 54. Nxh6 {[%clk 0:00:17]}  Nf2+ {[%clk 0:00:12]} 55. Kg2 {[%clk 0:00:17]}  Ng4+ {[%clk 0:00:12]} 56. Kf3 {[%clk 0:00:18]}  Nxh6 {[%clk 0:00:13]} 57. g4 {[%clk 0:00:18]}  Nf7 {[%clk 0:00:12]} 58. g5 {[%clk 0:00:17]}  Rh2 {[%clk 0:00:12]} 59. Kg4 {[%clk 0:00:17]}  Ne5+ {[%clk 0:00:11]} 60. Kh5 {[%clk 0:00:18]}  Nf3 {[%clk 0:00:11]} 61. Rb7+ {[%clk 0:00:18]}  Kf8 {[%clk 0:00:11]} 62. Kg6 {[%clk 0:00:15]}  Nxh4+ {[%clk 0:00:12]} 63. Kf6 {[%clk 0:00:16]}  Rf2+ {[%clk 0:00:12]} 64. Ke6 {[%clk 0:00:16]}  Nf3 {[%clk 0:00:10]} 65. g6 {[%clk 0:00:15]}  Ng5+ {[%clk 0:00:10]} 66. Ke5 {[%clk 0:00:15]}  Rf3 {[%clk 0:00:09]} 67. b4 {[%clk 0:00:15]}  Kg8 {[%clk 0:00:07]} 68. b5 {[%clk 0:00:16]}  Rb3 {[%clk 0:00:07]} 69. Kf5 {[%clk 0:00:14]}  Nf3 {[%clk 0:00:07]} 70. Kf6 {[%clk 0:00:14]}  Ng5 {[%clk 0:00:04]} 71. Rb8# {[%clk 0:00:14]} 1-0


[Site "https://www.chess.com"]

[Event "Titled Tuesday Blitz July 6 2021"]
[White "Coto Mederos, Michel"]
[Black "Alavi, Sayed Javad"]
[WhiteFideId "3508528"]
[BlackFideId "12500607"]
[WhiteElo "2427"]
[BlackElo "2495"]
[Result "1-0"]
[Round "03"]
[TimeControl "180+1"]
[Date "2021.07.06"]
[WhiteClock "0:00:09"]
[BlackClock "0:00:05"]

1. c4 {[%clk 0:03:00]}  Nf6 {[%clk 0:02:58]} 2. Nc3 {[%clk 0:03:00]}  e5 {[%clk 0:02:59]} 3. Nf3 {[%clk 0:02:59]}  Nc6 {[%clk 0:02:59]} 4. e4 {[%clk 0:02:59]}  Bb4 {[%clk 0:02:53]} 5. d3 {[%clk 0:02:58]}  d6 {[%clk 0:02:50]} 6. a3 {[%clk 0:02:58]}  Bxc3+ {[%clk 0:02:47]} 7. bxc3 {[%clk 0:02:59]}  O-O {[%clk 0:02:46]} 8. Be2 {[%clk 0:02:59]}  Ne7 {[%clk 0:02:45]} 9. O-O {[%clk 0:02:56]}  c5 {[%clk 0:02:45]} 10. Ne1 {[%clk 0:02:27]}  a6 {[%clk 0:02:01]} 11. a4 {[%clk 0:02:12]}  Bd7 {[%clk 0:01:57]} 12. f4 {[%clk 0:02:07]}  exf4 {[%clk 0:01:30]} 13. Bxf4 {[%clk 0:02:03]}  Be6 {[%clk 0:01:30]} 14. Bg5 {[%clk 0:01:39]}  Nd7 {[%clk 0:01:30]} 15. Nc2 {[%clk 0:01:36]}  f6 {[%clk 0:01:25]} 16. Bd2 {[%clk 0:01:20]}  Ne5 {[%clk 0:01:25]} 17. Ne3 {[%clk 0:01:20]}  Rc8 {[%clk 0:01:25]} 18. Rb1 {[%clk 0:01:15]}  Qd7 {[%clk 0:01:23]} 19. d4 {[%clk 0:00:57]}  cxd4 {[%clk 0:01:20]} 20. cxd4 {[%clk 0:00:58]}  N5g6 {[%clk 0:01:03]} 21. Qb3 {[%clk 0:00:57]}  Nc6 {[%clk 0:00:54]} 22. Bc3 {[%clk 0:00:34]}  Nd8 {[%clk 0:00:50]} 23. d5 {[%clk 0:00:30]}  Bf7 {[%clk 0:00:49]} 24. Bg4 {[%clk 0:00:30]}  Qc7 {[%clk 0:00:50]} 25. Bxc8 {[%clk 0:00:29]}  Qxc8 {[%clk 0:00:51]} 26. Nf5 {[%clk 0:00:28]}  Re8 {[%clk 0:00:34]} 27. Bb4 {[%clk 0:00:25]}  Qd7 {[%clk 0:00:29]} 28. Nxd6 {[%clk 0:00:23]}  Re5 {[%clk 0:00:29]} 29. c5 {[%clk 0:00:20]}  Rg5 {[%clk 0:00:27]} 30. Bd2 {[%clk 0:00:20]}  Rh5 {[%clk 0:00:24]} 31. Nxb7 {[%clk 0:00:19]}  Nf8 {[%clk 0:00:19]} 32. Nxd8 {[%clk 0:00:18]}  Qxd8 {[%clk 0:00:20]} 33. c6 {[%clk 0:00:18]}  Qe7 {[%clk 0:00:18]} 34. Qb8 {[%clk 0:00:14]}  Qxe4 {[%clk 0:00:14]} 35. Bb4 {[%clk 0:00:14]}  h6 {[%clk 0:00:08]} 36. Qxf8+ {[%clk 0:00:13]}  Kh7 {[%clk 0:00:09]} 37. Qxf7 {[%clk 0:00:13]}  Qe3+ {[%clk 0:00:07]} 38. Rf2 {[%clk 0:00:13]}  Rf5 {[%clk 0:00:06]} 39. Rf1 {[%clk 0:00:11]}  Qd4 {[%clk 0:00:04]} 40. Be1 {[%clk 0:00:08]}  Re5 {[%clk 0:00:04]} 41. Kh1 {[%clk 0:00:08]}  Rxe1 {[%clk 0:00:03]} 42. Rxe1 {[%clk 0:00:09]}  Qxf2 {[%clk 0:00:04]} 43. Rg1 {[%clk 0:00:10]}  Qc5 {[%clk 0:00:04]} 44. Qd7 {[%clk 0:00:10]}  h5 {[%clk 0:00:04]} 45. c7 {[%clk 0:00:10]}  h4 {[%clk 0:00:05]} 46. h3 {[%clk 0:00:09]} 1-0


[Site "https://www.chess.com"]

[Event "Titled Tuesday Blitz July 6 2021"]
[White "Cunjalo, Faris"]
[Black "Hebden, Mark L"]
[WhiteFideId "14410710"]
[BlackFideId "400084"]
[WhiteElo "2234"]
[BlackElo "2457"]
[Result "1-0"]
[Round "03"]
[TimeControl "180+1"]
[Date "2021.07.06"]
[WhiteClock "0:00:09"]
[BlackClock "0:00:23"]

1. d4 {[%clk 0:03:00]}  Nf6 {[%clk 0:02:59]} 2. c4 {[%clk 0:02:59]}  g6 {[%clk 0:02:58]} 3. Nc3 {[%clk 0:02:59]}  Bg7 {[%clk 0:02:59]} 4. e4 {[%clk 0:02:58]}  d6 {[%clk 0:02:59]} 5. Be2 {[%clk 0:02:58]}  O-O {[%clk 0:02:59]} 6. Bg5 {[%clk 0:02:58]}  c6 {[%clk 0:02:58]} 7. Nf3 {[%clk 0:02:56]}  h6 {[%clk 0:02:56]} 8. Be3 {[%clk 0:02:53]}  Nbd7 {[%clk 0:02:52]} 9. Nd2 {[%clk 0:02:51]}  e5 {[%clk 0:02:48]} 10. d5 {[%clk 0:02:50]}  c5 {[%clk 0:02:47]} 11. g4 {[%clk 0:02:49]}  a6 {[%clk 0:02:46]} 12. a4 {[%clk 0:02:43]}  b6 {[%clk 0:02:44]} 13. h4 {[%clk 0:02:43]}  Ne8 {[%clk 0:02:30]} 14. h5 {[%clk 0:02:38]}  g5 {[%clk 0:02:29]} 15. f3 {[%clk 0:02:31]}  Nc7 {[%clk 0:02:28]} 16. Bd3 {[%clk 0:02:30]}  Nf6 {[%clk 0:02:21]} 17. Qe2 {[%clk 0:02:28]}  Bd7 {[%clk 0:02:19]} 18. O-O {[%clk 0:02:25]}  Qb8 {[%clk 0:02:18]} 19. Rfb1 {[%clk 0:02:20]}  a5 {[%clk 0:02:06]} 20. Nb5 {[%clk 0:02:08]}  Na6 {[%clk 0:02:05]} 21. Nf1 {[%clk 0:02:06]}  Nb4 {[%clk 0:02:04]} 22. Ng3 {[%clk 0:02:06]}  Ne8 {[%clk 0:02:03]} 23. Qd2 {[%clk 0:02:02]}  f6 {[%clk 0:02:02]} 24. Be2 {[%clk 0:02:02]}  Rf7 {[%clk 0:02:01]} 25. b3 {[%clk 0:02:01]}  Bf8 {[%clk 0:01:59]} 26. Nc3 {[%clk 0:02:01]}  Ng7 {[%clk 0:01:55]} 27. Rf1 {[%clk 0:02:01]}  Qc8 {[%clk 0:01:53]} 28. Rf2 {[%clk 0:02:02]}  Ra7 {[%clk 0:01:53]} 29. Raf1 {[%clk 0:02:03]}  Be8 {[%clk 0:01:49]} 30. Nd1 {[%clk 0:02:03]}  Bd7 {[%clk 0:01:48]} 31. Qc3 {[%clk 0:02:03]}  Be8 {[%clk 0:01:48]} 32. Bd2 {[%clk 0:02:03]}  Bd7 {[%clk 0:01:48]} 33. Ne3 {[%clk 0:02:03]}  Ra8 {[%clk 0:01:45]} 34. Qc1 {[%clk 0:02:04]}  Qd8 {[%clk 0:01:44]} 35. Qc3 {[%clk 0:01:59]}  Qe7 {[%clk 0:01:43]} 36. Bd1 {[%clk 0:02:00]}  Re8 {[%clk 0:01:43]} 37. Bc2 {[%clk 0:02:00]}  Qd8 {[%clk 0:01:42]} 38. Bb1 {[%clk 0:02:00]}  Qc8 {[%clk 0:01:41]} 39. Qc1 {[%clk 0:02:01]}  Qd8 {[%clk 0:01:40]} 40. Qd1 {[%clk 0:02:01]}  Qc8 {[%clk 0:01:40]} 41. Bc1 {[%clk 0:02:01]}  Qd8 {[%clk 0:01:40]} 42. Rg2 {[%clk 0:01:59]}  Qc8 {[%clk 0:01:39]} 43. Nef5 {[%clk 0:01:51]}  Nxf5 {[%clk 0:01:38]} 44. exf5 {[%clk 0:01:52]}  Kh8 {[%clk 0:01:33]} 45. Ne4 {[%clk 0:01:51]}  Be7 {[%clk 0:01:33]} 46. Bd2 {[%clk 0:01:52]}  Rg8 {[%clk 0:01:31]} 47. Qe2 {[%clk 0:01:53]}  Qe8 {[%clk 0:01:30]} 48. Qe3 {[%clk 0:01:53]}  Bxa4 {[%clk 0:01:26]} 49. bxa4 {[%clk 0:01:52]}  Qxa4 {[%clk 0:01:26]} 50. Bd3 {[%clk 0:01:31]}  Qb3 {[%clk 0:01:22]} 51. Be2 {[%clk 0:01:30]}  Qxe3+ {[%clk 0:01:15]} 52. Bxe3 {[%clk 0:01:20]}  Ra8 {[%clk 0:01:08]} 53. Nc3 {[%clk 0:00:46]}  Nc2 {[%clk 0:01:04]} 54. Bc1 {[%clk 0:00:42]}  Nd4 {[%clk 0:01:04]} 55. Bd1 {[%clk 0:00:43]}  Rff8 {[%clk 0:01:02]} 56. Rb2 {[%clk 0:00:41]}  Rfb8 {[%clk 0:01:00]} 57. Ba4 {[%clk 0:00:41]}  Kg7 {[%clk 0:00:58]} 58. Kf2 {[%clk 0:00:41]}  Kf8 {[%clk 0:00:57]} 59. Be3 {[%clk 0:00:41]}  Bd8 {[%clk 0:00:57]} 60. Rfb1 {[%clk 0:00:42]}  Ke7 {[%clk 0:00:56]} 61. Bc6 {[%clk 0:00:42]}  Ra7 {[%clk 0:00:54]} 62. Na4 {[%clk 0:00:35]}  Ra6 {[%clk 0:00:44]} 63. Bxd4 {[%clk 0:00:31]}  cxd4 {[%clk 0:00:42]} 64. c5 {[%clk 0:00:31]}  dxc5 {[%clk 0:00:38]} 65. Nxc5 {[%clk 0:00:32]}  Ra7 {[%clk 0:00:36]} 66. Ne4 {[%clk 0:00:31]}  a4 {[%clk 0:00:35]} 67. d6+ {[%clk 0:00:31]}  Kf7 {[%clk 0:00:34]} 68. Ra2 {[%clk 0:00:23]}  a3 {[%clk 0:00:32]} 69. Rb3 {[%clk 0:00:23]}  b5 {[%clk 0:00:32]} 70. Rbxa3 {[%clk 0:00:24]}  Rxa3 {[%clk 0:00:31]} 71. Rxa3 {[%clk 0:00:24]}  b4 {[%clk 0:00:27]} 72. Bd5+ {[%clk 0:00:18]}  Kf8 {[%clk 0:00:23]} 73. Ra7 {[%clk 0:00:14]}  b3 {[%clk 0:00:23]} 74. Rf7+ {[%clk 0:00:09]} 1-0


[Site "https://www.chess.com"]